[Event "Titled Tuesday Blitz May 9 Early 2023"]
[White "Korelskiy, Egor"]
[Black "Matlakov, Maxim"]
[WhiteFideId "34329064"]
[BlackFideId "4168003"]
[WhiteElo "2156"]
[BlackElo "2666"]
[Result "0-1"]
[Round "01"]
[TimeControl "180+2"]
[Date "2023.05.09"]
[WhiteClock "0:00:00"]
[BlackClock "0:00:14"]

1. e4 {[%clk 0:02:55]}  c6 {[%clk 0:02:59]} 2. Nc3 {[%clk 0:02:54]}  d5 {[%clk 0:02:59]} 3. Nf3 {[%clk 0:02:53]}  dxe4 {[%clk 0:02:58]} 4. Nxe4 {[%clk 0:02:52]}  Nf6 {[%clk 0:02:59]} 5. Qe2 {[%clk 0:02:51]}  Nxe4 {[%clk 0:02:58]} 6. Qxe4 {[%clk 0:02:50]}  Qa5 {[%clk 0:02:58]} 7. Bc4 {[%clk 0:02:48]}  Bf5 {[%clk 0:02:56]} 8. Qf4 {[%clk 0:02:25]}  e6 {[%clk 0:02:55]} 9. c3 {[%clk 0:02:14]}  Nd7 {[%clk 0:02:54]} 10. O-O {[%clk 0:02:12]}  Be7 {[%clk 0:02:54]} 11. d4 {[%clk 0:02:05]}  O-O {[%clk 0:02:54]} 12. Re1 {[%clk 0:02:03]}  Nf6 {[%clk 0:02:51]} 13. h3 {[%clk 0:01:58]}  b5 {[%clk 0:02:46]} 14. Bb3 {[%clk 0:01:56]}  Qd8 {[%clk 0:02:44]} 15. Qd2 {[%clk 0:01:41]}  a5 {[%clk 0:02:43]} 16. Bc2 {[%clk 0:01:35]}  Bxc2 {[%clk 0:02:43]} 17. Qxc2 {[%clk 0:01:35]}  Qd5 {[%clk 0:02:42]} 18. b3 {[%clk 0:01:21]}  a4 {[%clk 0:02:42]} 19. Bb2 {[%clk 0:01:18]}  a3 {[%clk 0:02:25]} 20. Bc1 {[%clk 0:01:17]}  c5 {[%clk 0:02:25]} 21. Be3 {[%clk 0:01:07]}  Rfc8 {[%clk 0:02:25]} 22. Qe2 {[%clk 0:01:04]}  cxd4 {[%clk 0:02:23]} 23. Bxd4 {[%clk 0:01:02]}  Qf5 {[%clk 0:02:15]} 24. Rad1 {[%clk 0:00:53]}  h6 {[%clk 0:02:08]} 25. Be5 {[%clk 0:00:47]}  Nd5 {[%clk 0:02:05]} 26. Qd2 {[%clk 0:00:18]}  Bf6 {[%clk 0:02:03]} 27. Nd4 {[%clk 0:00:16]}  Qg6 {[%clk 0:01:58]} 28. Bxf6 {[%clk 0:00:16]}  Qxf6 {[%clk 0:01:58]} 29. Nxb5 {[%clk 0:00:15]}  Rc5 {[%clk 0:01:54]} 30. c4 {[%clk 0:00:15]}  Nf4 {[%clk 0:01:55]} 31. Qe3 {[%clk 0:00:13]}  Rg5 {[%clk 0:01:53]} 32. g3 {[%clk 0:00:13]}  Nxh3+ {[%clk 0:01:53]} 33. Kg2 {[%clk 0:00:13]}  Nf4+ {[%clk 0:01:51]} 34. Kg1 {[%clk 0:00:14]}  h5 {[%clk 0:01:45]} 35. Qf3 {[%clk 0:00:13]}  Rf8 {[%clk 0:01:39]} 36. Kf1 {[%clk 0:00:13]}  Rf5 {[%clk 0:01:24]} 37. gxf4 {[%clk 0:00:13]}  Rxf4 {[%clk 0:01:25]} 38. Qg3 {[%clk 0:00:13]}  h4 {[%clk 0:01:25]} 39. Qh2 {[%clk 0:00:13]}  e5 {[%clk 0:01:19]} 40. Re3 {[%clk 0:00:13]}  e4 {[%clk 0:01:17]} 41. Nc7 {[%clk 0:00:13]}  Rg4 {[%clk 0:01:13]} 42. Nd5 {[%clk 0:00:13]}  Qg5 {[%clk 0:01:13]} 43. Ke2 {[%clk 0:00:12]}  f5 {[%clk 0:01:13]} 44. Qd6 {[%clk 0:00:11]}  f4 {[%clk 0:01:12]} 45. Qe6+ {[%clk 0:00:11]}  Kh8 {[%clk 0:01:11]} 46. Rxe4 {[%clk 0:00:11]}  f3+ {[%clk 0:01:10]} 47. Kd3 {[%clk 0:00:11]}  Rxe4 {[%clk 0:01:09]} 48. Qxe4 {[%clk 0:00:11]}  Qh6 {[%clk 0:00:42]} 49. Rh1 {[%clk 0:00:11]}  g5 {[%clk 0:00:43]} 50. Qe5+ {[%clk 0:00:11]}  Kh7 {[%clk 0:00:41]} 51. Qe7+ {[%clk 0:00:11]}  Kh8 {[%clk 0:00:38]} 52. Rg1 {[%clk 0:00:11]}  Qg6+ {[%clk 0:00:36]} 53. Kd2 {[%clk 0:00:10]}  Rf5 {[%clk 0:00:35]} 54. Qd8+ {[%clk 0:00:10]}  Kh7 {[%clk 0:00:35]} 55. Ne7 {[%clk 0:00:10]}  Qg7 {[%clk 0:00:21]} 56. Nxf5 {[%clk 0:00:09]}  Qb2+ {[%clk 0:00:21]} 57. Ke3 {[%clk 0:00:09]}  Qe2+ {[%clk 0:00:20]} 58. Kd4 {[%clk 0:00:06]}  Qd2+ {[%clk 0:00:21]} 59. Ke4 {[%clk 0:00:05]}  Qxd8 {[%clk 0:00:22]} 60. Kxf3 {[%clk 0:00:06]}  Qd3+ {[%clk 0:00:22]} 61. Kg4 {[%clk 0:00:06]}  Qe4+ {[%clk 0:00:19]} 62. Kxg5 {[%clk 0:00:06]}  h3 {[%clk 0:00:20]} 63. Rg4 {[%clk 0:00:05]}  Qg2 {[%clk 0:00:18]} 64. Ng3 {[%clk 0:00:03]}  h2 {[%clk 0:00:17]} 65. Rh4+ {[%clk 0:00:03]}  Kg8 {[%clk 0:00:17]} 66. Kg4 {[%clk 0:00:03]}  Qxf2 {[%clk 0:00:15]} 67. Kh3 {[%clk 0:00:02]}  Qxa2 {[%clk 0:00:15]} 68. Rg4+ {[%clk 0:00:01]}  Kf8 {[%clk 0:00:15]} 69. Rf4+ {[%clk 0:00:02]}  Ke8 {[%clk 0:00:15]} 70. Rf1 {[%clk 0:00:03]}  Qxb3 {[%clk 0:00:15]} 71. Kxh2 {[%clk 0:00:03]}  a2 {[%clk 0:00:15]} 72. Ne4 {[%clk 0:00:03]}  Qb1 {[%clk 0:00:15]} 73. Rxb1 {[%clk 0:00:00]}  axb1=Q {[%clk 0:00:14]} 0-1


[Site "https://www.chess.com"]

[Event "Titled Tuesday Blitz May 9 Early 2023"]
[White "Turzo, Attila"]
[Black "Terry, Renato"]
[WhiteFideId "704954"]
[BlackFideId "3803457"]
[WhiteElo "2482"]
[BlackElo "2575"]
[Result "0-1"]
[Round "01"]
[TimeControl "180+2"]
[Date "2023.05.09"]
[WhiteClock "0:01:01"]
[BlackClock "0:02:15"]

1. d4 {[%clk 0:02:41]}  e6 {[%clk 0:02:58]} 2. Bf4 {[%clk 0:02:31]}  Nf6 {[%clk 0:02:58]} 3. e3 {[%clk 0:02:30]}  b6 {[%clk 0:02:58]} 4. Nf3 {[%clk 0:02:29]}  Bb7 {[%clk 0:02:58]} 5. h3 {[%clk 0:02:29]}  Bd6 {[%clk 0:02:58]} 6. Bxd6 {[%clk 0:02:27]}  cxd6 {[%clk 0:02:59]} 7. Nbd2 {[%clk 0:02:26]}  d5 {[%clk 0:02:58]} 8. c4 {[%clk 0:02:24]}  O-O {[%clk 0:02:58]} 9. cxd5 {[%clk 0:02:21]}  Nxd5 {[%clk 0:02:59]} 10. Bd3 {[%clk 0:02:19]}  Nc6 {[%clk 0:02:58]} 11. a3 {[%clk 0:02:20]}  Rc8 {[%clk 0:02:58]} 12. O-O {[%clk 0:02:20]}  Nce7 {[%clk 0:02:58]} 13. Qa4 {[%clk 0:02:14]}  a6 {[%clk 0:02:58]} 14. Rfc1 {[%clk 0:02:11]}  b5 {[%clk 0:02:58]} 15. Qd1 {[%clk 0:02:11]}  Rxc1 {[%clk 0:02:54]} 16. Rxc1 {[%clk 0:02:10]}  Qb8 {[%clk 0:02:55]} 17. Ne4 {[%clk 0:02:10]}  d6 {[%clk 0:02:49]} 18. Nc3 {[%clk 0:02:00]}  h6 {[%clk 0:02:47]} 19. Nxd5 {[%clk 0:01:57]}  Nxd5 {[%clk 0:02:48]} 20. Nd2 {[%clk 0:01:50]}  Nf6 {[%clk 0:02:43]} 21. Be2 {[%clk 0:01:45]}  e5 {[%clk 0:02:40]} 22. dxe5 {[%clk 0:01:43]}  dxe5 {[%clk 0:02:41]} 23. Bf3 {[%clk 0:01:42]}  e4 {[%clk 0:02:42]} 24. Be2 {[%clk 0:01:42]}  Rd8 {[%clk 0:02:42]} 25. Qc2 {[%clk 0:01:42]}  Rc8 {[%clk 0:02:43]} 26. Qb1 {[%clk 0:01:41]}  Rd8 {[%clk 0:02:43]} 27. Nb3 {[%clk 0:01:40]}  Qe5 {[%clk 0:02:41]} 28. Nd4 {[%clk 0:01:40]}  Nd5 {[%clk 0:02:41]} 29. Qc2 {[%clk 0:01:37]}  Nf4 {[%clk 0:02:37]} 30. exf4 {[%clk 0:01:25]}  Qxd4 {[%clk 0:02:36]} 31. Rd1 {[%clk 0:01:25]}  Qb6 {[%clk 0:02:36]} 32. Rxd8+ {[%clk 0:01:24]}  Qxd8 {[%clk 0:02:37]} 33. Qd1 {[%clk 0:01:22]}  Qc7 {[%clk 0:02:36]} 34. Qd2 {[%clk 0:01:22]}  Qc5 {[%clk 0:02:31]} 35. g3 {[%clk 0:01:19]}  Qc6 {[%clk 0:02:30]} 36. Bf1 {[%clk 0:01:17]}  e3 {[%clk 0:02:29]} 37. fxe3 {[%clk 0:01:16]}  Qh1+ {[%clk 0:02:29]} 38. Kf2 {[%clk 0:01:16]}  Qf3+ {[%clk 0:02:26]} 39. Ke1 {[%clk 0:01:15]}  Qxg3+ {[%clk 0:02:27]} 40. Qf2 {[%clk 0:01:15]}  Qg6 {[%clk 0:02:27]} 41. Kd2 {[%clk 0:01:10]}  Be4 {[%clk 0:02:24]} 42. Kc1 {[%clk 0:01:06]}  Qc6+ {[%clk 0:02:22]} 43. Kd1 {[%clk 0:01:06]}  Bf3+ {[%clk 0:02:18]} 44. Kd2 {[%clk 0:01:04]}  Qd5+ {[%clk 0:02:15]} 45. Kc1 {[%clk 0:01:01]}  Qd1# {[%clk 0:02:15]} 0-1


[Site "https://www.chess.com"]

[Event "Titled Tuesday Blitz May 9 Early 2023"]
[White "WindWhistler11"]
[Black "Nguyen, Ngoc Truong Son"]
[BlackFideId "12401110"]
[WhiteElo "2479"]
[BlackElo "2556"]
[Result "0-1"]
[Round "01"]
[TimeControl "180+2"]
[Date "2023.05.09"]
[WhiteClock "0:00:32"]
[BlackClock "0:02:29"]

1. Nf3 {[%clk 0:03:00]}  Nf6 {[%clk 0:02:59]} 2. g3 {[%clk 0:03:00]}  d5 {[%clk 0:02:58]} 3. c4 {[%clk 0:02:59]}  d4 {[%clk 0:02:58]} 4. e3 {[%clk 0:02:56]}  dxe3 {[%clk 0:02:56]} 5. fxe3 {[%clk 0:02:54]}  g6 {[%clk 0:02:56]} 6. Bg2 {[%clk 0:02:54]}  Bg7 {[%clk 0:02:56]} 7. O-O {[%clk 0:02:54]}  O-O {[%clk 0:02:57]} 8. Nc3 {[%clk 0:02:54]}  c5 {[%clk 0:02:57]} 9. b3 {[%clk 0:02:42]}  Nc6 {[%clk 0:02:55]} 10. Ba3 {[%clk 0:02:36]}  b6 {[%clk 0:02:51]} 11. Ne5 {[%clk 0:02:30]}  Nxe5 {[%clk 0:02:51]} 12. Bxa8 {[%clk 0:02:30]}  Bg4 {[%clk 0:02:51]} 13. Bf3 {[%clk 0:02:21]}  Bxf3 {[%clk 0:02:40]} 14. Rxf3 {[%clk 0:02:21]}  Qxd2 {[%clk 0:02:39]} 15. Rxf6 {[%clk 0:01:44]}  Qxe3+ {[%clk 0:02:35]} 16. Kg2 {[%clk 0:01:33]}  Bxf6 {[%clk 0:02:30]} 17. Nd5 {[%clk 0:01:30]}  Qe4+ {[%clk 0:02:30]} 18. Kh3 {[%clk 0:01:23]}  Nd3 {[%clk 0:02:28]} 19. Nxf6+ {[%clk 0:00:32]}  exf6 {[%clk 0:02:29]} 0-1


[Site "https://www.chess.com"]

[Event "Titled Tuesday Blitz May 9 Early 2023"]
[White "Shimanov, Aleksandr"]
[Black "Arat, Ufuk Sezen"]
[WhiteFideId "4198603"]
[BlackFideId "6309089"]
[WhiteElo "2631"]
[BlackElo "2289"]
[Result "1-0"]
[Round "01"]
[TimeControl "180+2"]
[Date "2023.05.09"]
[WhiteClock "0:00:09"]
[BlackClock "0:00:05"]

1. e4 {[%clk 0:02:03]}  c5 {[%clk 0:02:59]} 2. d4 {[%clk 0:02:02]}  cxd4 {[%clk 0:02:59]} 3. Qxd4 {[%clk 0:02:03]}  Nc6 {[%clk 0:02:59]} 4. Qd3 {[%clk 0:02:03]}  e6 {[%clk 0:02:59]} 5. Nc3 {[%clk 0:02:03]}  Nf6 {[%clk 0:02:59]} 6. Bf4 {[%clk 0:02:02]}  Bb4 {[%clk 0:02:49]} 7. O-O-O {[%clk 0:02:00]}  O-O {[%clk 0:02:45]} 8. Nge2 {[%clk 0:02:00]}  h6 {[%clk 0:02:34]} 9. e5 {[%clk 0:01:52]}  Ng4 {[%clk 0:02:22]} 10. Qg3 {[%clk 0:01:51]}  f5 {[%clk 0:02:01]} 11. h3 {[%clk 0:01:48]}  g5 {[%clk 0:02:01]} 12. hxg4 {[%clk 0:01:48]}  gxf4 {[%clk 0:02:00]} 13. Nxf4 {[%clk 0:01:48]}  Qg5 {[%clk 0:01:50]} 14. Rh5 {[%clk 0:01:20]}  Qxg4 {[%clk 0:01:34]} 15. Qxg4+ {[%clk 0:01:20]}  fxg4 {[%clk 0:01:35]} 16. g3 {[%clk 0:01:21]}  Kg7 {[%clk 0:01:24]} 17. Ne4 {[%clk 0:01:17]}  Rf5 {[%clk 0:01:12]} 18. Rxf5 {[%clk 0:01:08]}  exf5 {[%clk 0:01:11]} 19. Nd6 {[%clk 0:01:09]}  Nxe5 {[%clk 0:01:11]} 20. Nxf5+ {[%clk 0:01:09]}  Kf6 {[%clk 0:01:09]} 21. Ne3 {[%clk 0:01:07]}  Bc5 {[%clk 0:01:07]} 22. Be2 {[%clk 0:01:03]}  Bxe3+ {[%clk 0:01:03]} 23. fxe3 {[%clk 0:01:04]}  b6 {[%clk 0:00:52]} 24. Rd6+ {[%clk 0:01:03]}  Ke7 {[%clk 0:00:44]} 25. Rxh6 {[%clk 0:01:03]}  Bb7 {[%clk 0:00:44]} 26. Rh7+ {[%clk 0:00:57]}  Kd6 {[%clk 0:00:44]} 27. Kd2 {[%clk 0:00:53]}  Rc8 {[%clk 0:00:42]} 28. c3 {[%clk 0:00:50]}  Nf3+ {[%clk 0:00:40]} 29. Kd1 {[%clk 0:00:48]}  Be4 {[%clk 0:00:36]} 30. Rh6+ {[%clk 0:00:44]}  Ke7 {[%clk 0:00:35]} 31. Nd3 {[%clk 0:00:40]}  Rf8 {[%clk 0:00:31]} 32. Nf2 {[%clk 0:00:37]}  Bf5 {[%clk 0:00:26]} 33. Bxf3 {[%clk 0:00:30]}  gxf3 {[%clk 0:00:26]} 34. g4 {[%clk 0:00:21]}  Be6 {[%clk 0:00:27]} 35. a3 {[%clk 0:00:21]}  Rg8 {[%clk 0:00:27]} 36. Rh4 {[%clk 0:00:21]}  Kf6 {[%clk 0:00:27]} 37. Kd2 {[%clk 0:00:21]}  Kg5 {[%clk 0:00:18]} 38. Rh5+ {[%clk 0:00:20]}  Kg6 {[%clk 0:00:18]} 39. Rh1 {[%clk 0:00:19]}  Kf6 {[%clk 0:00:17]} 40. Rg1 {[%clk 0:00:18]}  Ke5 {[%clk 0:00:15]} 41. Rg3 {[%clk 0:00:15]}  Bd5 {[%clk 0:00:14]} 42. Rh3 {[%clk 0:00:15]}  Rf8 {[%clk 0:00:10]} 43. Rh5+ {[%clk 0:00:15]}  Kd6 {[%clk 0:00:10]} 44. e4 {[%clk 0:00:15]}  Be6 {[%clk 0:00:09]} 45. Ke3 {[%clk 0:00:15]}  a6 {[%clk 0:00:09]} 46. Rh3 {[%clk 0:00:12]}  Kc5 {[%clk 0:00:09]} 47. Rxf3 {[%clk 0:00:07]}  Rg8 {[%clk 0:00:10]} 48. Rg3 {[%clk 0:00:07]}  Kc4 {[%clk 0:00:10]} 49. Rg2 {[%clk 0:00:07]}  Kb3 {[%clk 0:00:11]} 50. Nd3 {[%clk 0:00:07]}  Rh8 {[%clk 0:00:11]} 51. g5 {[%clk 0:00:07]}  Rh3+ {[%clk 0:00:11]} 52. Kd4 {[%clk 0:00:08]}  Rh7 {[%clk 0:00:10]} 53. Nf4 {[%clk 0:00:08]}  Rg7 {[%clk 0:00:09]} 54. Nxe6 {[%clk 0:00:07]}  dxe6 {[%clk 0:00:09]} 55. Ke5 {[%clk 0:00:08]}  Rg6 {[%clk 0:00:09]} 56. Kf4 {[%clk 0:00:08]}  a5 {[%clk 0:00:08]} 57. Kg4 {[%clk 0:00:09]}  Rg8 {[%clk 0:00:08]} 58. Kh5 {[%clk 0:00:09]}  Rh8+ {[%clk 0:00:08]} 59. Kg6 {[%clk 0:00:09]}  Rh4 {[%clk 0:00:08]} 60. e5 {[%clk 0:00:10]}  Rf4 {[%clk 0:00:09]} 61. Kh7 {[%clk 0:00:08]}  Rh4+ {[%clk 0:00:09]} 62. Kg7 {[%clk 0:00:08]}  Rh5 {[%clk 0:00:09]} 63. Kf6 {[%clk 0:00:08]}  b5 {[%clk 0:00:04]} 64. g6 {[%clk 0:00:08]}  Rh6 {[%clk 0:00:04]} 65. Kxe6 {[%clk 0:00:08]}  b4 {[%clk 0:00:03]} 66. axb4 {[%clk 0:00:08]}  axb4 {[%clk 0:00:03]} 67. cxb4 {[%clk 0:00:09]}  Kxb4 {[%clk 0:00:04]} 68. Kf7 {[%clk 0:00:09]}  Kb3 {[%clk 0:00:05]} 69. g7 {[%clk 0:00:09]}  Rh7 {[%clk 0:00:05]} 70. Kf8 {[%clk 0:00:09]} 1-0


[Site "https://www.chess.com"]

[Event "Titled Tuesday Blitz May 9 Early 2023"]
[White "Demchenko, Anton"]
[Black "Przybylski, Wojciech"]
[WhiteFideId "4160258"]
[BlackFideId "1117599"]
[WhiteElo "2545"]
[BlackElo "2222"]
[Result "1-0"]
[Round "01"]
[TimeControl "180+2"]
[Date "2023.05.09"]
[WhiteClock "0:00:04"]
[BlackClock "0:00:15"]

1. e4 {[%clk 0:02:59]}  e5 {[%clk 0:02:58]} 2. Nf3 {[%clk 0:02:59]}  Nc6 {[%clk 0:02:58]} 3. Bc4 {[%clk 0:02:59]}  Nf6 {[%clk 0:02:57]} 4. d3 {[%clk 0:02:59]}  Be7 {[%clk 0:02:55]} 5. O-O {[%clk 0:02:57]}  O-O {[%clk 0:02:54]} 6. Re1 {[%clk 0:02:57]}  d6 {[%clk 0:02:54]} 7. a4 {[%clk 0:02:58]}  Be6 {[%clk 0:02:54]} 8. Bxe6 {[%clk 0:02:57]}  fxe6 {[%clk 0:02:54]} 9. c3 {[%clk 0:02:58]}  Qd7 {[%clk 0:02:54]} 10. Nbd2 {[%clk 0:02:48]}  Rae8 {[%clk 0:02:53]} 11. b4 {[%clk 0:02:47]}  Kh8 {[%clk 0:02:52]} 12. b5 {[%clk 0:02:39]}  Nd8 {[%clk 0:02:52]} 13. d4 {[%clk 0:02:40]}  exd4 {[%clk 0:02:46]} 14. cxd4 {[%clk 0:02:41]}  Nf7 {[%clk 0:02:41]} 15. Bb2 {[%clk 0:02:38]}  Bd8 {[%clk 0:02:38]} 16. Rc1 {[%clk 0:02:36]}  e5 {[%clk 0:02:35]} 17. dxe5 {[%clk 0:02:33]}  Nxe5 {[%clk 0:02:12]} 18. Nxe5 {[%clk 0:02:33]}  dxe5 {[%clk 0:02:12]} 19. Nc4 {[%clk 0:02:33]}  Qf7 {[%clk 0:01:27]} 20. Nxe5 {[%clk 0:02:21]}  Qa2 {[%clk 0:01:24]} 21. Qc2 {[%clk 0:02:21]}  Be7 {[%clk 0:01:16]} 22. Nc4 {[%clk 0:02:12]}  Bc5 {[%clk 0:00:32]} 23. Ra1 {[%clk 0:02:02]}  Bxf2+ {[%clk 0:00:24]} 24. Kh1 {[%clk 0:01:49]}  Qxa1 {[%clk 0:00:17]} 25. Rxa1 {[%clk 0:01:41]}  Nxe4 {[%clk 0:00:18]} 26. Nd2 {[%clk 0:01:05]}  Ng3+ {[%clk 0:00:06]} 27. hxg3 {[%clk 0:01:05]}  Re6 {[%clk 0:00:07]} 28. Bxg7+ {[%clk 0:00:20]}  Kxg7 {[%clk 0:00:07]} 29. Qc3+ {[%clk 0:00:21]}  Rff6 {[%clk 0:00:05]} 30. Rf1 {[%clk 0:00:12]}  Re3 {[%clk 0:00:05]} 31. Qxc7+ {[%clk 0:00:06]}  Rf7 {[%clk 0:00:05]} 32. Qxf7+ {[%clk 0:00:06]}  Kxf7 {[%clk 0:00:06]} 33. Rxf2+ {[%clk 0:00:07]}  Kg6 {[%clk 0:00:06]} 34. Rf4 {[%clk 0:00:06]}  Re1+ {[%clk 0:00:07]} 35. Kh2 {[%clk 0:00:06]}  Re2 {[%clk 0:00:08]} 36. Nf3 {[%clk 0:00:07]}  Ra2 {[%clk 0:00:08]} 37. Ne5+ {[%clk 0:00:06]}  Kg5 {[%clk 0:00:09]} 38. Kh3 {[%clk 0:00:05]}  h5 {[%clk 0:00:09]} 39. Nf3+ {[%clk 0:00:05]}  Kg6 {[%clk 0:00:10]} 40. g4 {[%clk 0:00:06]}  h4 {[%clk 0:00:09]} 41. Nxh4+ {[%clk 0:00:05]}  Kg5 {[%clk 0:00:10]} 42. Rf5+ {[%clk 0:00:04]}  Kh6 {[%clk 0:00:11]} 43. Rh5+ {[%clk 0:00:04]}  Kg7 {[%clk 0:00:11]} 44. Nf5+ {[%clk 0:00:05]}  Kf6 {[%clk 0:00:11]} 45. Rh6+ {[%clk 0:00:06]}  Kg5 {[%clk 0:00:12]} 46. Rh5+ {[%clk 0:00:05]}  Kf4 {[%clk 0:00:12]} 47. Rh7 {[%clk 0:00:04]}  Ra3+ {[%clk 0:00:12]} 48. g3+ {[%clk 0:00:04]}  Kg5 {[%clk 0:00:12]} 49. Rxb7 {[%clk 0:00:05]}  Rxa4 {[%clk 0:00:12]} 50. Nh4 {[%clk 0:00:03]}  Ra1 {[%clk 0:00:12]} 51. Nf3+ {[%clk 0:00:04]}  Kg6 {[%clk 0:00:12]} 52. b6 {[%clk 0:00:04]}  Rh1+ {[%clk 0:00:12]} 53. Kg2 {[%clk 0:00:04]}  Rb1 {[%clk 0:00:12]} 54. bxa7 {[%clk 0:00:05]}  Rxb7 {[%clk 0:00:13]} 55. a8=Q {[%clk 0:00:05]}  Rb2+ {[%clk 0:00:14]} 56. Kh3 {[%clk 0:00:05]}  Rh2+ {[%clk 0:00:13]} 57. Nxh2 {[%clk 0:00:05]}  Kh6 {[%clk 0:00:14]} 58. Qc6+ {[%clk 0:00:04]}  Kg5 {[%clk 0:00:15]} 59. Nf3# {[%clk 0:00:04]} 1-0


[Site "https://www.chess.com"]

[Event "Titled Tuesday Blitz May 9 Early 2023"]
[White "Sliwicki, Damian"]
[Black "Pranesh M"]
[WhiteFideId "1127128"]
[BlackFideId "35028600"]
[WhiteElo "2030"]
[BlackElo "2437"]
[Result "0-1"]
[Round "01"]
[TimeControl "180+2"]
[Date "2023.05.09"]
[WhiteClock "0:00:02"]
[BlackClock "0:01:17"]

1. e4 {[%clk 0:02:41]}  e6 {[%clk 0:03:00]} 2. d4 {[%clk 0:02:39]}  d5 {[%clk 0:03:00]} 3. exd5 {[%clk 0:02:39]}  exd5 {[%clk 0:03:01]} 4. Nf3 {[%clk 0:02:39]}  Nf6 {[%clk 0:03:01]} 5. c4 {[%clk 0:02:38]}  Be7 {[%clk 0:03:02]} 6. Bd3 {[%clk 0:02:35]}  O-O {[%clk 0:03:03]} 7. O-O {[%clk 0:02:35]}  Nc6 {[%clk 0:03:03]} 8. h3 {[%clk 0:02:32]}  dxc4 {[%clk 0:03:00]} 9. Bxc4 {[%clk 0:02:33]}  Bf5 {[%clk 0:03:00]} 10. Nc3 {[%clk 0:02:32]}  h6 {[%clk 0:02:49]} 11. Re1 {[%clk 0:02:27]}  a6 {[%clk 0:02:45]} 12. Bf4 {[%clk 0:02:24]}  Bd6 {[%clk 0:02:45]} 13. Ne5 {[%clk 0:02:17]}  Na5 {[%clk 0:02:25]} 14. Bxf7+ {[%clk 0:01:27]}  Rxf7 {[%clk 0:02:17]} 15. Qa4 {[%clk 0:01:08]}  Bd7 {[%clk 0:01:27]} 16. Qxa5 {[%clk 0:00:44]}  b6 {[%clk 0:01:27]} 17. Nxf7 {[%clk 0:00:11]}  Kxf7 {[%clk 0:01:28]} 18. Bxd6 {[%clk 0:00:06]}  bxa5 {[%clk 0:01:28]} 19. Ba3 {[%clk 0:00:03]}  Bc6 {[%clk 0:01:22]} 20. d5 {[%clk 0:00:02]}  Bxd5 {[%clk 0:01:17]} 21. Rad1 {[%clk 0:00:03]}  c6 {[%clk 0:01:17]} 22. Ne4 {[%clk 0:00:01]}  Nxe4 {[%clk 0:01:16]} 23. Rxe4 {[%clk 0:00:02]}  Bxe4 {[%clk 0:01:17]} 24. Rxd8 {[%clk 0:00:02]}  Rxd8 {[%clk 0:01:17]} 0-1


[Site "https://www.chess.com"]

[Event "Titled Tuesday Blitz May 9 Early 2023"]
[White "Pourkashiyan, Atousa"]
[Black "Ibarra Jerez, Jose Carlos"]
[WhiteFideId "12502014"]
[BlackFideId "2226332"]
[WhiteElo "2228"]
[BlackElo "2638"]
[Result "0-1"]
[Round "01"]
[TimeControl "180+2"]
[Date "2023.05.09"]
[WhiteClock "0:00:00"]
[BlackClock "0:00:07"]

1. e4 {[%clk 0:02:56]}  c5 {[%clk 0:02:59]} 2. Nf3 {[%clk 0:02:55]}  Nc6 {[%clk 0:03:00]} 3. d4 {[%clk 0:02:52]}  cxd4 {[%clk 0:02:57]} 4. Nxd4 {[%clk 0:02:53]}  e5 {[%clk 0:02:57]} 5. Nb5 {[%clk 0:02:52]}  d6 {[%clk 0:02:54]} 6. N1c3 {[%clk 0:02:52]}  a6 {[%clk 0:02:50]} 7. Na3 {[%clk 0:02:52]}  Be6 {[%clk 0:02:41]} 8. Nc4 {[%clk 0:02:50]}  Rb8 {[%clk 0:02:37]} 9. Ne3 {[%clk 0:02:49]}  Nf6 {[%clk 0:02:36]} 10. Ned5 {[%clk 0:02:28]}  g6 {[%clk 0:02:13]} 11. Bg5 {[%clk 0:02:26]}  Bg7 {[%clk 0:02:13]} 12. Qf3 {[%clk 0:02:20]}  Nd4 {[%clk 0:02:05]} 13. Nxf6+ {[%clk 0:02:20]}  Kf8 {[%clk 0:02:04]} 14. Qd1 {[%clk 0:01:46]}  Bxf6 {[%clk 0:02:02]} 15. Be3 {[%clk 0:01:42]}  Rc8 {[%clk 0:01:55]} 16. Bd3 {[%clk 0:01:40]}  Kg7 {[%clk 0:01:53]} 17. O-O {[%clk 0:01:38]}  Qb6 {[%clk 0:01:40]} 18. Qd2 {[%clk 0:01:27]}  h6 {[%clk 0:01:29]} 19. Na4 {[%clk 0:01:19]}  Qc6 {[%clk 0:01:25]} 20. Nc3 {[%clk 0:00:56]}  Bg5 {[%clk 0:01:22]} 21. Rad1 {[%clk 0:00:54]}  Qb6 {[%clk 0:01:17]} 22. b3 {[%clk 0:00:36]}  Qa5 {[%clk 0:01:10]} 23. Na4 {[%clk 0:00:23]}  Qd8 {[%clk 0:01:01]} 24. Bxg5 {[%clk 0:00:21]}  Qxg5 {[%clk 0:00:56]} 25. Qxg5 {[%clk 0:00:20]}  hxg5 {[%clk 0:00:56]} 26. c3 {[%clk 0:00:20]}  Nc6 {[%clk 0:00:53]} 27. Nb6 {[%clk 0:00:21]}  Rcd8 {[%clk 0:00:53]} 28. Bc4 {[%clk 0:00:21]}  Kf6 {[%clk 0:00:47]} 29. Rd2 {[%clk 0:00:21]}  Rh4 {[%clk 0:00:44]} 30. f3 {[%clk 0:00:21]}  Ke7 {[%clk 0:00:44]} 31. Rfd1 {[%clk 0:00:21]}  g4 {[%clk 0:00:42]} 32. g3 {[%clk 0:00:18]}  Rhh8 {[%clk 0:00:27]} 33. fxg4 {[%clk 0:00:18]}  Bxg4 {[%clk 0:00:24]} 34. Nd5+ {[%clk 0:00:19]}  Kf8 {[%clk 0:00:23]} 35. Rf1 {[%clk 0:00:19]}  Kg7 {[%clk 0:00:21]} 36. Ne3 {[%clk 0:00:16]}  Be6 {[%clk 0:00:21]} 37. Rfd1 {[%clk 0:00:15]}  Bxc4 {[%clk 0:00:15]} 38. Nxc4 {[%clk 0:00:16]}  b5 {[%clk 0:00:14]} 39. Nxd6 {[%clk 0:00:14]}  Kf6 {[%clk 0:00:11]} 40. Nb7 {[%clk 0:00:12]}  Rxd2 {[%clk 0:00:10]} 41. Rxd2 {[%clk 0:00:12]}  Rc8 {[%clk 0:00:10]} 42. Nd6 {[%clk 0:00:07]}  Rb8 {[%clk 0:00:10]} 43. c4 {[%clk 0:00:06]}  Nd4 {[%clk 0:00:09]} 44. Kf2 {[%clk 0:00:05]}  Ke6 {[%clk 0:00:09]} 45. c5 {[%clk 0:00:06]}  b4 {[%clk 0:00:09]} 46. Nc4 {[%clk 0:00:06]}  Rc8 {[%clk 0:00:07]} 47. Ke3 {[%clk 0:00:05]}  f6 {[%clk 0:00:07]} 48. h4 {[%clk 0:00:05]}  Rxc5 {[%clk 0:00:07]} 49. Rf2 {[%clk 0:00:05]}  Rc8 {[%clk 0:00:06]} 50. g4 {[%clk 0:00:06]}  Rh8 {[%clk 0:00:07]} 51. Rh2 {[%clk 0:00:06]}  f5 {[%clk 0:00:07]} 52. gxf5+ {[%clk 0:00:07]}  gxf5 {[%clk 0:00:08]} 53. exf5+ {[%clk 0:00:07]}  Nxf5+ {[%clk 0:00:08]} 54. Ke4 {[%clk 0:00:07]}  Ng3+ {[%clk 0:00:07]} 55. Kf3 {[%clk 0:00:07]}  Nh5 {[%clk 0:00:06]} 56. Ke4 {[%clk 0:00:08]}  Nf6+ {[%clk 0:00:07]} 57. Ke3 {[%clk 0:00:08]}  Ng4+ {[%clk 0:00:07]} 58. Kf3 {[%clk 0:00:00]}  Nxh2+ {[%clk 0:00:07]} 0-1


[Site "https://www.chess.com"]